Cogmind - Beta 13 @@@ ROGUE MODE // 2024.06.03 @ 14:53:18 Player: wojo Result: Destroyed by 3N-WG1(R) with Subdweller Laser Performance ------------- Evolutions (0) 0 Regions Visited (2) 400 Robots Destroyed (25) 125 Value Destroyed (736) 736 Prototype IDs (2) 40 Alien Tech Used (0) 0 Bonus (-25) -25 TOTAL SCORE: 1276 Bonus ------- Friendly Fire -25 Cogmind --------- Core Integrity 0/250 Matter 208/300 Energy 239/250 System Corruption 0% Temperature Cool (6) Movement Treading (160) Location -10/Subcaves Parts ------- > --- POWER (1) -------- Ion Engine > --- PROPULSION (2) --- Light Treads Light Treads > --- UTILITY (2) ------ Large Storage Unit Signal Interpreter > --- WEAPON (2) ------- Particle Gun Light Assault Rifle > --- INVENTORY (15) --- Light Nuclear Core Light Nuclear Core Light Treads Improved Heat Sink Improved Heat Sink Visual Processing Unit Sensor Array Signal Interpreter Mining Laser Multitool Peak State ------------ > --- POWER ------------ Light Ion Engine > --- PROPULSION ------- Light Treads Light Treads > --- UTILITY ---------- Large Storage Unit Signal Interpreter > --- WEAPON ----------- Particle Gun Assault Rifle > --- INVENTORY -------- Ion Engine Light Nuclear Core Light Nuclear Core Light Treads Light Treads Improved Heat Sink Improved Heat Sink Visual Processing Unit Sensor Array Signal Interpreter Light Assault Rifle Grenade Launcher Mining Laser Multitool [Rating: 10] Favorites ----------- Power Light Ion Engine Engine Light Ion Engine Propulsion Light Treads Treads Light Treads Utility Large Storage Unit Storage Large Storage Unit Processor Signal Interpreter Weapon Light Assault Rifle Energy Gun Particle Gun Ballistic Gun Light Assault Rifle Launcher Grenade Launcher Build | -11 -10 -10 ------- Run | Yrd Mat Sub Slots Evolved . | . . . Power . | . . . Propulsion . | . . . Utility . | . . . Weapon . | . . . Parts Attached 29 | 6 15 8 Power 4 | 1 2 1 Engine 4 | 1 2 1 Core . | . . . Reactor . | . . . Propulsion 6 | 2 3 1 Treads 6 | 2 3 1 Leg . | . . . Wheel . | . . . Hover . | . . . Flight . | . . . Utility 7 | 1 6 . Device . | . . . Storage 6 | 1 5 . Processor 1 | . 1 . Hackware . | . . . Protection . | . . . Artifact . | . . . Weapon 12 | 2 4 6 Energy Gun 1 | . . 1 Energy Cannon . | . . . Ballistic Gun 8 | 2 3 3 Ballistic Cannon . | . . . Launcher 3 | . 1 2 Special Weapon . | . . . Impact Weapon . | . . . Slashing Weapon . | . . . Piercing Weapon . | . . . Special Melee Weapon . | . . . Unidentified Prototypes . | . . . Parts Lost 5 | . 1 4 Power 2 | . 1 1 Propulsion 1 | . . 1 Utility . | . . . Weapon 2 | . . 2 Highest Loss Streak 3 | . 1 3 To Critical Strikes . | . . . Average Slot Usage (%) 96 | . 94 99 Engine 13 | . 13 14 Treads 28 | . 28 28 Storage 14 | . 14 14 Processor 10 | . 9 14 Energy Gun 2 | . . 6 Ballistic Gun 23 | . 27 15 Launcher 2 | . . 5 Naked Turns . | . . . Heaviest Build 85 | 10 85 31 Greatest Support 40 | 40 40 40 Greatest Overweight (x) 2 | . 2 . Average Overweight (x) . | . . . Largest Inventory Capacity 25 | 8 25 15 Average Capacity 13 | 6 13 15 Most Carried 15 | 1 15 15 Average Carried 10 | . 10 13 Final Capacity 15 | 8 15 15 Final Carried 13 | 1 13 10 Class Distribution -------------------- 100% | Mutant Dominant Class ---------------- Mutant | -10/Materials Mutant | -10/Subcaves Resources | -11 -10 -10 ----------- Run | Yrd Mat Sub Matter Collected 781 | 171 435 175 Remotely . | . . . Salvage Created 755 | . 506 249 Parts 69 | . 42 27 Haulers Intercepted . | . . . Recyclers Shooed . | . . . Parts Field Recycled . | . . . Retrieved Matter . | . . . Parts Self-Destructed 7 | . . 7 Prevented . | . . . Kills | -11 -10 -10 ------- Run | Yrd Mat Sub Combat Hostiles Destroyed 21 | . 12 9 Guns 15 | . 11 4 AOE 6 | . 1 5 Classes Destroyed 5 | . 4 1 Worker 1 | . 1 . Watcher 3 | . 3 . Swarmer 4 | . 2 2 Grunt 12 | . 10 2 Subdweller 5 | . . 5 Best Kill Streak 3 | . 3 2 Combat Bots Only 2 | . 2 2 Max Kills in Single Turn 2 | . 2 2 Gunslinging . | . . . Exploded 2 | . 1 2 Melee . | . . . Uniques/NPCs Destroyed . | . . . Combat | -11 -10 -10 -------- Run | Yrd Mat Sub Hostile Shots Fired 127 | . 74 53 Missed 40 | . 22 18 Damage Taken 1294 | . 673 621 Core 253 | . 122 131 Absorbed by Shields . | . . . Regen/Repaired (Parts) 131 | . 131 . Core Remaining (%) 100 | 100 . . Volleys Fired 86 | . 52 34 Largest 2 | . 2 2 Hottest 95 | . 50 95 Shots Fired 165 | . 103 62 Gun 148 | . 99 49 Cannon . | . . . Launcher 17 | . 4 13 Special . | . . . Kinetic 134 | . 99 35 Thermal 14 | . . 14 Explosive 17 | . 4 13 Electromagnetic . | . . . Robot Hit Streak 18 | . 13 18 Robot Miss Streak 4 | . 4 2 Penetration Max . | . . . Secondary Targets 5 | . 3 2 Max Gunslinging Chain 1 | . 1 1 Shots Hit Robots 100 | . 67 33 Core Hits 47 | . 30 17 Critical Kills . | . . . Critical Parts Destroyed 1 | . 1 . Critical Strikes 1 | . 1 . Destroy 1 | . 1 . Melee Attacks . | . . . Impact . | . . . Slashing . | . . . Piercing . | . . . Sneak Attacks . | . . . Combat Hostiles . | . . . Follow-up Attacks . | . . . Damage Inflicted 1497 | . 769 728 Guns 983 | . 662 321 Cannons . | . . . Explosions 514 | . 107 407 Melee . | . . . Ramming . | . . . Kinetic 854 | . 662 192 Thermal 129 | . . 129 Explosive 514 | . 107 407 Electromagnetic . | . . . Impact . | . . . Slashing . | . . . Piercing . | . . . Highest Corruption . | . . . Average Corruption . | . . . Corruption Purged . | . . . Corruption Blocked . | . . . Overload Shots . | . . . Overflow Damage 6 | . . 6 Projectiles . | . . . Explosions 6 | . . 6 Melee . | . . . Knockbacks . | . . . Impact . | . . . Kinetic . | . . . Secondary . | . . . Self-Inflicted Damage 121 | . 31 90 Shots 4 | . 1 3 Rammed . | . . . Targets Rammed . | . . . Kicked . | . . . Crushed . | . . . Highest Temperature 25 | . 25 14 Average Temperature 8 | . 8 4 Received Heat Transfer 432 | . 324 108 Siege Activations . | . . . Robots Corrupted . | . . . Combat Hostiles . | . . . Parts Fried . | . . . Impact Corruptions . | . . . Robots Melted . | . . . Combat Hostiles . | . . . Parts Melted . | . . . Heat Transferred 296 | . . 296 Parts Sabotaged . | . . . Parts Stolen . | . . . Parts Stripped . | . . . Power Chain Reactions . | . . . Alert | -11 -10 -10 ------- Run | Yrd Mat Sub Peak Influence 133 | . 133 . Initial . | . . . Average 35 | . 36 . Maximum Alert Level . | . . . Low Security (%) 100 | 100 100 . Level 1 . | . . . Level 2 . | . . . Level 3 . | . . . Level 4 . | . . . Level 5 . | . . . High Security . | . . . Max Security . | . . . Squads Dispatched 3 | . 3 . Investigation 3 | . 3 . Extermination . | . . . Reinforcement . | . . . Assault . | . . . Garrison . | . . . Intercept . | . . . Searches Triggered . | . . . Construction Impeded . | . . . Haulers Reinforced . | . . . Active Scanning Responses . | . . . Cargo Convoy Interrupts . | . . . Stealth | -11 -10 -10 --------- Run | Yrd Mat Sub Distress Signals 1 | . 1 . Communications Jammed . | . . . Distress Signals . | . . . Times Spotted 30 | . 18 12 Peak Tracking Total 3 | . 3 3 Tactical Retreats 2 | . 2 . Traps | -11 -10 -10 ------- Run | Yrd Mat Sub Traps Triggered 5 | . 4 1 Indirectly . | . . . Trap Hack Attempts . | . . . Triggered . | . . . Disarmed . | . . . Reprogrammed . | . . . Reused . | . . . Traps Extracted . | . . . Installed . | . . . Triggered . | . . . Machines | -11 -10 -10 ---------- Run | Yrd Mat Sub Machines Disabled . | . . . Max in Single Turn . | . . . Machines Repaired . | . . . Machines Dismantled . | . . . Machines Sabotaged . | . . . Overloaded Fab Kills . | . . . Hacking | -11 -10 -10 --------- Run | Yrd Mat Sub Machines Accessed 7 | . 6 1 Terminals 3 | . 3 . Fabricators . | . . . Repair Stations 1 | . 1 . Recycling Units 2 | . 2 . Scanalyzers . | . . . Garrison Access . | . . . Total Hacks 16 | . 13 3 Successful 13 | . 10 3 Failed 3 | . 3 . Catastrophic 1 | . 1 . Database Lockouts . | . . . Manual . | . . . Terminals 7 | . 7 . Fabricators . | . . . Repair Stations 3 | . 3 . Recycling Units 3 | . 3 . Scanalyzers . | . . . Garrison Access . | . . . Terminal Hacks 9 | . 6 3 Record 3 | . . 3 Robot Analysis 1 | . 1 . Prototype ID Bank 1 | . 1 . Alert Level 1 | . 1 . Locate Traps 1 | . 1 . Transport Status 1 | . 1 . Hauler Manifests 1 | . 1 . Fabricator Hacks . | . . . Repair Station Hacks 2 | . 2 . Scan Component 1 | . 1 . Repair 1 | . 1 . Recycling Unit Hacks 2 | . 2 . Report Inventory 2 | . 2 . Scanalyzer . | . . . Garrison Access Hacks . | . . . Unauthorized Hacks . | . . . Terminals . | . . . Fabricators . | . . . Repair Stations . | . . . Recycling Units . | . . . Scanalyzers . | . . . Garrison Access . | . . . Data Cores Recovered . | . . . Used . | . . . Hacking Detections 3 | . 3 . Full Trace Events 1 | . 1 . Feedback Events . | . . . Feedback Blocked . | . . . Robot Schematics Acquired . | . . . Robots Built . | . . . Authchips . | . . . Time . | . . . Total Robot Build Rating . | . . . Part Schematics Acquired . | . . . Parts Built . | . . . Authchips . | . . . Time . | . . . Total Part Build Rating . | . . . Parts Repaired 1 | . 1 . Time 26 | . 26 . Parts Recycled . | . . . Recycled Matter . | . . . Retrieved Matter . | . . . Retrieved Components . | . . . Parts Scanalyzed . | . . . Part Schematics Acquired . | . . . Parts Damaged . | . . . Bothacking | -11 -10 -10 ------------ Run | Yrd Mat Sub Used RIF Installer . | . . . Robots Hacked . | . . . Non-combat . | . . . Combat . | . . . Robot Hacks Applied . | . . . Relay Couplers Released . | . . . Fabnet Peak Effective % . | . . . Robots Rewired . | . . . Allies Hacked . | . . . Hacks Repelled . | . . . Allies | -11 -10 -10 -------- Run | Yrd Mat Sub Total Allies . | . . . Largest Group . | . . . Highest-Rated Group . | . . . Highest-Rated Ally . | . . . Total Orders . | . . . Ally Attacks . | . . . Total Damage . | . . . Kills . | . . . Allies Corrupted . | . . . Allies Melted . | . . . Intel | -11 -10 -10 ------- Run | Yrd Mat Sub Robot Analysis Total 1 | . 1 . Derelict Logs Recovered 1 | . . 1 Drone Launches . | . . . Drone Recoveries . | . . . Exploration | -11 -10 -10 ------------- Run | Yrd Mat Sub Turns Passed 2863 | 72 1865 926 Spaces Moved 1570 | 43 1021 506 Core 5 | 5 . . Treads 1565 | 38 1021 506 Legs . | . . . Wheels . | . . . Hover . | . . . Flight . | . . . Fastest Speed 50 | 50 160 160 Average Speed 160 | 147 160 160 Slowest Speed 320 | 160 320 160 Overloaded Moves . | . . . Propulsion Burnouts . | . . . Robots Hopped . | . . . Cave-ins Triggered . | . . . Exploration Rate (%) 43 | 4 100 27 Regions Visited 2 Branch Regions 1 Pre-discovered Areas 2 | . . 2 Known Exits Taken 1 | . 1 . Unknown Exits Taken 1 | 1 . . Scrap Searched . | . . . Spaces Dug . | . . . Terrain Destroyed 89 | . 21 68 Melee . | . . . Projectile . | . . . AOE 89 | . 21 68 Terrain Rammed . | . . . Walls Destroyed . | . . . Machines Disabled . | . . . Actions | -11 -10 -10 --------- Run | Yrd Mat Sub Total 1767 | 49 1155 563 Wait 55 | . 43 12 Move 1568 | 42 1020 506 Hop . | . . . Pick Up 19 | 1 16 2 Fast Attach 12 | 6 6 . Attach 7 | . 3 4 Detach 1 | . 1 . Swap 10 | . 6 4 Drop 9 | . 8 1 Fire 86 | . 52 34 Melee . | . . . Ram . | . . . Kick . | . . . Crush . | . . . Escape Stasis . | . . . Rewire . | . . . Trap . | . . . Miscellaneous . | . . . Route ------- -11/Scrapyard -10/Materials (discovered 6 exits: *Mat x3 / *Min x2 / *Sub) -10/Subcaves History --------- Turn | Location | Event 12 | -11/Scrapyard | Discovered new exit (range 14) 73 | -11/Scrapyard | Entered Materials 301 | -10/Materials | Build established: Mutant 476 | -10/Materials | Discovered new exit (range 12) 813 | -10/Materials | Discovered new exit (range 11) 1175 | -10/Materials | Discovered new exit (range 8) 1179 | -10/Materials | Discovered new exit (range 5) 1195 | -10/Materials | Identified exit to Materials 1532 | -10/Materials | Discovered exit to Materials (range 12) 1604 | -10/Materials | Repaired Lgt. Treads 1680 | -10/Materials | Discovered new exit (range 14) 1700 | -10/Materials | Identified exit to Mines 1936 | -10/Materials | Identified exit to Subcaves 1938 | -10/Materials | Entered Subcaves 2185 | -10/Subcaves | Core integrity fell below 50% 2305 | -10/Subcaves | Visited Clippyterm 2310 | -10/Subcaves | Learned Factory stockpile data 2400 | -10/Subcaves | Learned location of Zion (-6) 2400 | -10/Subcaves | Met a Zionite searching for "candidates" 2600 | -10/Subcaves | Shifting Twisted Machinery released Sub. Optics 2613 | -10/Subcaves | Learned location of Storage (-7) 2655 | -10/Subcaves | Lost 3 parts (1p1n1w) 2656 | -10/Subcaves | Shifting Twisted Machinery released Flamer 2741 | -10/Subcaves | Core integrity fell below 20% 2864 | -10/Subcaves | Destroyed by 3N-WG1(R) with Subdweller Laser Last Messages --------------- 02630_ Destroyed Flight Unit. 02630_ S-10 Pest destroyed. 02635_ Lgt. Assault Rifle fries itself beyond repair. 02635_ Acquired 10 matter. 02636_ Lgt. Ion Engine fries itself beyond repair. 02638_ Acquired 5 matter. 02639_ Acquired 10 matter. Flamer falls loose from the Twisted Machinery. 02683_ Acquired 15 matter. 02686_ Acquired 9 matter. 02793_ The unstable cave ceiling collapses. 02797_ FR-RUD(R) destroyed. 02800_ The unstable cave ceiling collapses. 02811_ Acquired 25 matter. 02817_ The unstable cave ceiling collapses. 02847_ Grenade Launcher destroyed. 02864_ VN-VES(R) destroyed. 02864_ Switching to secondary target: 3N-WG1(R). Map ----- +----------------------------------------------------+ | ???????????????????????????????????# #??????? | | ???????????????????????????????????## #??????? | | ??????????????????????????????????### ##?????? | | ??????????????????????????????????# #?????? | | ??????????????????????????????##### # ##?????? | | ?????????????????????????????## ## ### #?????? | | ????????????????????????????## # ##?????? | | ?????????????????????????#### #?????? | | ??????????????????????#### # ## ## ###?????? | | ??????????????????????# #########???????? | | ?????????????????????## #??##???????????? | | ???????????????????##"# #### #???????????? | | ???????????????????# ## # ### #???????????? | | ??????????????????## # " # #????????????? | | ??????????????????# "" # # #????????????? | | ??????????????????## " ##???????????? | | ???????????????????## #???????????? | | ??????????????????### & # ## #???????? | | ??????????????????# # * ! ###### #???????? | | ??????????????????# !& #????## #??????? | | ?????????????????##" O ##?????##### ##??????? | | ?????????????????# " #??????????? #??????? | | ?????????????????##" ## #???????????# ##??????? | | ?????????????????# # ##???????????? #??????? | | ?????????????????## ## #???????????? #??????? | | ?????????????????? ?# @#????????????? ##??????? | | ????????????????? &#???????????? #???????? | | ?????????????# [ ![%=????????????#???????? | | ?????????????## ! &!& ??????????????????? | | ??????????????# ?????????????????? | | ??????????????# ### R ???????????????? | | ??????????????# ??## ### ??????????????? | | ??????????????##?????# #??# ?????????????? | | ?????????????????????# #??? ????????????? | | ?????????????????????## ???? #???????????? | | ??????????????????????# #????? ????????????? | | ??????????????????????# ###??????# ????????????? | | ?????????????????????? ????????????????????????? | | ?????????????????????? ????????????????????????? | | ?????????????????????? ????????????????????????? | | ??????????????????????? ????????????????????????? | | ?????????????????????????????????????????????????? | | ?????????????????????????????????????????????????? | | ?????????????????????????????????????????????????? | | ?????????????????????????????????????????????????? | | ?????????????????????????????????????????????????? | | ?????????????????????????????????????????????????? | | ?????????????????????????????????????????????????? | | ?????????????????????????????????????????????????? | | ?????????????????????????????????????????????????? | +----------------------------------------------------+ Best States ------------- Heat Dissipation 25 Energy Generation 10 Energy Capacity 250 Matter Stores 300 Matter Capacity 300 Sight Range 16 Terrain Scan Density 10 Evasion (%) 40 Recoil Reduction 2 Item Schematics ----------------- None Robot Schematics ------------------ None Fabricated ------------ Nothing Alien Tech Used ----------------- None Achievements -------------- None Challenges ------------ None Game ------ Seed ProcessingProjectionSuite Manual? 0 Play Time 00:25:15 Cumulative 20.4 hours Start 2024.06.03 @ 12:47:28 End 2024.06.03 @ 14:53:18 Sessions 1 Manual Loads 0 Difficulty Rogue Special Mode None Game No. 34 Rogue 34 Adventurer 0 Explorer 0 Win Type - Total 0 Types 0/0/0/0/0/0/0/0/0 Lore% 12 Gallery% 25 Achievement% 17 Wizard Run 0 Options --------- Layout 1 ASCII 0 Keyboard 0 Movement Arrows Keybinds 0 Fullscreen 1 Font 16/Terminus Map View 50x40 Zoom Use 0% Tactical HUD 1 Map Filters NONE Filters NONE Steam SD RUN: 68021e94-4ef3-48e7-8f4a-94c4588f2719